[Event "Titled Tuesday Blitz August 15 Early 2023"]
[White "Postlmayer, Jakob"]
[Black "KSho99"]
[WhiteFideId "1643622"]
[WhiteElo "2545"]
[BlackElo "2212"]
[Result "1-0"]
[Round "1"]
[TimeControl "180+1"]
[Date "2023.08.15"]
[WhiteClock "0:01:38"]
[BlackClock "0:00:00"]
[Board "198"]

1. d4 {[%clk 0:02:59]}  d5 {[%clk 0:02:59]} 2. c4 {[%clk 0:02:59]}  dxc4 {[%clk 0:02:59]} 3. e3 {[%clk 0:02:59]}  Nf6 {[%clk 0:02:59]} 4. Bxc4 {[%clk 0:02:59]}  e6 {[%clk 0:02:58]} 5. Nf3 {[%clk 0:02:59]}  c5 {[%clk 0:02:58]} 6. O-O {[%clk 0:02:59]}  a6 {[%clk 0:02:58]} 7. Nbd2 {[%clk 0:02:58]}  Nbd7 {[%clk 0:02:50]} 8. b3 {[%clk 0:02:54]}  Be7 {[%clk 0:02:42]} 9. dxc5 {[%clk 0:02:53]}  Nxc5 {[%clk 0:02:35]} 10. Bb2 {[%clk 0:02:43]}  O-O {[%clk 0:02:34]} 11. Nd4 {[%clk 0:02:34]}  e5 {[%clk 0:02:15]} 12. N4f3 {[%clk 0:02:29]}  e4 {[%clk 0:02:12]} 13. Nd4 {[%clk 0:02:21]}  Bg4 {[%clk 0:02:03]} 14. Be2 {[%clk 0:02:20]}  Nd3 {[%clk 0:01:49]} 15. Bxg4 {[%clk 0:02:14]}  Nxb2 {[%clk 0:01:49]} 16. Qe2 {[%clk 0:02:14]}  Nxg4 {[%clk 0:01:25]} 17. Qxg4 {[%clk 0:02:14]}  f5 {[%clk 0:01:24]} 18. Nxf5 {[%clk 0:02:06]}  Rxf5 {[%clk 0:01:24]} 19. Qxf5 {[%clk 0:02:06]}  Qxd2 {[%clk 0:01:24]} 20. Qe6+ {[%clk 0:02:01]}  Kf8 {[%clk 0:01:24]} 21. Qxe4 {[%clk 0:02:01]}  Bf6 {[%clk 0:01:16]} 22. Qxb7 {[%clk 0:01:54]}  Rd8 {[%clk 0:01:08]} 23. Rac1 {[%clk 0:01:51]}  Nd3 {[%clk 0:00:37]} 24. Rc8 {[%clk 0:01:50]}  Ne5 {[%clk 0:00:17]} 25. h3 {[%clk 0:01:42]}  Rxc8 {[%clk 0:00:01]} 26. Qxc8+ {[%clk 0:01:43]}  Kf7 {[%clk 0:00:02]} 27. Qxa6 {[%clk 0:01:42]}  Qc3 {[%clk 0:00:01]} 28. Rd1 {[%clk 0:01:38]}  Nd3 {[%clk 0:00:00]} 29. Qxd3 {[%clk 0:01:38]} 1-0


[Site "https://www.chess.com"]

[Event "Titled Tuesday Blitz August 15 Early 2023"]
[White "Feliz Dotel, Dewar Bienvenido"]
[Black "Al-Tarboush, Ward"]
[WhiteFideId "6402801"]
[BlackFideId "7601450"]
[WhiteElo "2203"]
[BlackElo "2541"]
[Result "0-1"]
[Round "1"]
[TimeControl "180+1"]
[Date "2023.08.15"]
[WhiteClock "0:00:02"]
[BlackClock "0:01:44"]
[Board "201"]

1. d4 {[%clk 0:02:59]}  Nf6 {[%clk 0:02:59]} 2. e3 {[%clk 0:02:59]}  c5 {[%clk 0:02:59]} 3. dxc5 {[%clk 0:02:59]}  e6 {[%clk 0:02:58]} 4. Nf3 {[%clk 0:02:58]}  Bxc5 {[%clk 0:02:58]} 5. c4 {[%clk 0:02:59]}  O-O {[%clk 0:02:57]} 6. a3 {[%clk 0:02:58]}  d5 {[%clk 0:02:55]} 7. cxd5 {[%clk 0:02:56]}  Nxd5 {[%clk 0:02:55]} 8. b4 {[%clk 0:02:49]}  Be7 {[%clk 0:02:54]} 9. Bb2 {[%clk 0:02:50]}  Bf6 {[%clk 0:02:54]} 10. Bxf6 {[%clk 0:02:49]}  Qxf6 {[%clk 0:02:55]} 11. Ra2 {[%clk 0:02:35]}  Nc6 {[%clk 0:02:55]} 12. Be2 {[%clk 0:02:29]}  Rd8 {[%clk 0:02:53]} 13. Qb3 {[%clk 0:02:22]}  e5 {[%clk 0:02:52]} 14. Qb2 {[%clk 0:02:06]}  Be6 {[%clk 0:02:51]} 15. Ra1 {[%clk 0:02:05]}  Qg6 {[%clk 0:02:46]} 16. O-O {[%clk 0:01:51]}  Bh3 {[%clk 0:02:45]} 17. Ne1 {[%clk 0:01:51]}  e4 {[%clk 0:02:38]} 18. Kh1 {[%clk 0:01:41]}  Bf5 {[%clk 0:02:35]} 19. Nc3 {[%clk 0:01:40]}  Nxc3 {[%clk 0:02:33]} 20. Qxc3 {[%clk 0:01:40]}  Rac8 {[%clk 0:02:34]} 21. Qb2 {[%clk 0:01:37]}  h5 {[%clk 0:02:31]} 22. Rc1 {[%clk 0:01:27]}  h4 {[%clk 0:02:32]} 23. b5 {[%clk 0:01:25]}  Ne7 {[%clk 0:02:32]} 24. Nc2 {[%clk 0:01:21]}  h3 {[%clk 0:02:31]} 25. g3 {[%clk 0:01:21]}  Bg4 {[%clk 0:02:31]} 26. Nd4 {[%clk 0:01:17]}  Rxc1 {[%clk 0:02:28]} 27. Rxc1 {[%clk 0:01:17]}  Nf5 {[%clk 0:02:21]} 28. Bxg4 {[%clk 0:01:01]}  Qxg4 {[%clk 0:02:19]} 29. Qe2 {[%clk 0:01:01]}  Qg6 {[%clk 0:02:06]} 30. Nxf5 {[%clk 0:00:59]}  Qxf5 {[%clk 0:02:07]} 31. Kg1 {[%clk 0:00:57]}  b6 {[%clk 0:02:04]} 32. Rd1 {[%clk 0:00:57]}  Rc8 {[%clk 0:02:01]} 33. g4 {[%clk 0:00:48]}  Qg5 {[%clk 0:02:00]} 34. f3 {[%clk 0:00:45]}  exf3 {[%clk 0:01:58]} 35. Qxf3 {[%clk 0:00:45]}  Qxb5 {[%clk 0:01:53]} 36. Qxh3 {[%clk 0:00:44]}  Qe2 {[%clk 0:01:53]} 37. Rf1 {[%clk 0:00:21]}  Rc3 {[%clk 0:01:51]} 38. Qf3 {[%clk 0:00:16]}  Qxe3+ {[%clk 0:01:51]} 39. Qxe3 {[%clk 0:00:16]}  Rxe3 {[%clk 0:01:52]} 40. Ra1 {[%clk 0:00:15]}  Re4 {[%clk 0:01:53]} 41. h3 {[%clk 0:00:15]}  Ra4 {[%clk 0:01:53]} 42. Kf2 {[%clk 0:00:16]}  b5 {[%clk 0:01:54]} 43. Rb1 {[%clk 0:00:16]}  a6 {[%clk 0:01:53]} 44. Rb3 {[%clk 0:00:16]}  Rf4+ {[%clk 0:01:52]} 45. Kg3 {[%clk 0:00:16]}  g5 {[%clk 0:01:51]} 46. h4 {[%clk 0:00:16]}  f6 {[%clk 0:01:52]} 47. hxg5 {[%clk 0:00:17]}  fxg5 {[%clk 0:01:52]} 48. Rd3 {[%clk 0:00:16]}  Ra4 {[%clk 0:01:53]} 49. Kg2 {[%clk 0:00:13]}  Kf7 {[%clk 0:01:53]} 50. Rd5 {[%clk 0:00:13]}  Rxg4+ {[%clk 0:01:51]} 51. Kf3 {[%clk 0:00:12]}  Rf4+ {[%clk 0:01:51]} 52. Kg3 {[%clk 0:00:12]}  Ra4 {[%clk 0:01:52]} 53. Rxg5 {[%clk 0:00:12]}  Rxa3+ {[%clk 0:01:53]} 54. Kf4 {[%clk 0:00:13]}  Ke6 {[%clk 0:01:51]} 55. Ke4 {[%clk 0:00:12]}  Ra4+ {[%clk 0:01:51]} 56. Kd3 {[%clk 0:00:13]}  b4 {[%clk 0:01:47]} 57. Kc4 {[%clk 0:00:12]}  a5 {[%clk 0:01:48]} 58. Kb3 {[%clk 0:00:09]}  Ra3+ {[%clk 0:01:48]} 59. Kb2 {[%clk 0:00:10]}  Kd6 {[%clk 0:01:46]} 60. Rb5 {[%clk 0:00:08]}  Kc6 {[%clk 0:01:47]} 61. Rh5 {[%clk 0:00:08]}  Kb6 {[%clk 0:01:47]} 62. Rg5 {[%clk 0:00:08]}  Rh3 {[%clk 0:01:46]} 63. Rf5 {[%clk 0:00:07]}  Rc3 {[%clk 0:01:43]} 64. Rg5 {[%clk 0:00:07]}  Rc5 {[%clk 0:01:44]} 65. Rg6+ {[%clk 0:00:06]}  Kb5 {[%clk 0:01:44]} 66. Rg8 {[%clk 0:00:05]}  a4 {[%clk 0:01:44]} 67. Rb8+ {[%clk 0:00:03]}  Kc4 {[%clk 0:01:45]} 68. Ra8 {[%clk 0:00:04]}  a3+ {[%clk 0:01:45]} 69. Ka2 {[%clk 0:00:04]}  Kc3 {[%clk 0:01:45]} 70. Rh8 {[%clk 0:00:04]}  b3+ {[%clk 0:01:46]} 71. Kb1 {[%clk 0:00:02]}  a2+ {[%clk 0:01:46]} 72. Ka1 {[%clk 0:00:02]}  Kb4 {[%clk 0:01:43]} 73. Rh4+ {[%clk 0:00:02]}  Rc4 {[%clk 0:01:43]} 74. Rh2 {[%clk 0:00:02]}  Rc1+ {[%clk 0:01:43]} 75. Kb2 {[%clk 0:00:02]}  Rb1# {[%clk 0:01:44]} 0-1


[Site "https://www.chess.com"]

[Event "Titled Tuesday Blitz August 15 Early 2023"]
[White "Pert, Nina"]
[Black "Camilla_Lee"]
[WhiteFideId "456853"]
[WhiteElo "2152"]
[BlackElo "2538"]
[Result "1-0"]
[Round "1"]
[TimeControl "180+1"]
[Date "2023.08.15"]
[WhiteClock "0:01:54"]
[BlackClock "0:02:00"]
[Board "207"]

1. e4 {[%clk 0:02:59]}  e5 {[%clk 0:02:56]} 2. Nf3 {[%clk 0:02:59]}  Nc6 {[%clk 0:02:56]} 3. Bc4 {[%clk 0:02:58]}  Nf6 {[%clk 0:02:55]} 4. d3 {[%clk 0:02:55]}  Be7 {[%clk 0:02:54]} 5. O-O {[%clk 0:02:53]}  d6 {[%clk 0:02:50]} 6. h3 {[%clk 0:02:53]}  O-O {[%clk 0:02:50]} 7. c3 {[%clk 0:02:52]}  Na5 {[%clk 0:02:45]} 8. Bb5 {[%clk 0:02:49]}  a6 {[%clk 0:02:45]} 9. Ba4 {[%clk 0:02:49]}  b5 {[%clk 0:02:46]} 10. Bc2 {[%clk 0:02:49]}  c5 {[%clk 0:02:46]} 11. Re1 {[%clk 0:02:48]}  Qc7 {[%clk 0:02:45]} 12. Nbd2 {[%clk 0:02:47]}  Nc6 {[%clk 0:02:45]} 13. Nf1 {[%clk 0:02:47]}  d5 {[%clk 0:02:45]} 14. exd5 {[%clk 0:02:45]}  Nxd5 {[%clk 0:02:45]} 15. d4 {[%clk 0:02:42]}  cxd4 {[%clk 0:02:45]} 16. cxd4 {[%clk 0:02:42]}  exd4 {[%clk 0:02:45]} 17. Nxd4 {[%clk 0:02:38]}  Nxd4 {[%clk 0:02:45]} 18. Qxd4 {[%clk 0:02:36]}  Qxc2 {[%clk 0:02:45]} 19. Qxd5 {[%clk 0:02:35]}  Be6 {[%clk 0:02:43]} 20. Qf3 {[%clk 0:02:26]}  Bf6 {[%clk 0:02:38]} 21. Ne3 {[%clk 0:02:23]}  Qc5 {[%clk 0:02:33]} 22. Rb1 {[%clk 0:02:14]}  Bxa2 {[%clk 0:02:28]} 23. Ra1 {[%clk 0:02:13]}  Be6 {[%clk 0:02:29]} 24. b4 {[%clk 0:02:11]}  Qxb4 {[%clk 0:02:19]} 25. Ba3 {[%clk 0:02:11]}  Qa4 {[%clk 0:02:06]} 26. Bxf8 {[%clk 0:02:09]}  Bxa1 {[%clk 0:02:05]} 27. Qxa8 {[%clk 0:02:08]}  h6 {[%clk 0:02:01]} 28. Ba3+ {[%clk 0:02:05]}  Kh7 {[%clk 0:02:01]} 29. Rxa1 {[%clk 0:02:04]}  b4 {[%clk 0:02:01]} 30. Bb2 {[%clk 0:02:02]}  Qb3 {[%clk 0:02:01]} 31. Qe4+ {[%clk 0:01:55]}  g6 {[%clk 0:02:00]} 32. Qe5 {[%clk 0:01:54]} 1-0


[Site "https://www.chess.com"]

[Event "Titled Tuesday Blitz August 15 Early 2023"]
[White "Grebeniuk, Semen"]
[Black "Johnson, Ben"]
[WhiteFideId "14117509"]
[BlackFideId "2010917"]
[WhiteElo "2538"]
[BlackElo "2138"]
[Result "1-0"]
[Round "1"]
[TimeControl "180+1"]
[Date "2023.08.15"]
[WhiteClock "0:00:12"]
[BlackClock "0:00:11"]
[Board "208"]

1. d4 {[%clk 0:02:59]}  Nf6 {[%clk 0:02:58]} 2. Nf3 {[%clk 0:02:59]}  e6 {[%clk 0:02:57]} 3. Bg5 {[%clk 0:03:00]}  d5 {[%clk 0:02:55]} 4. Nbd2 {[%clk 0:02:59]}  c5 {[%clk 0:02:52]} 5. e3 {[%clk 0:03:00]}  Nc6 {[%clk 0:02:51]} 6. c3 {[%clk 0:02:59]}  Be7 {[%clk 0:02:44]} 7. Bd3 {[%clk 0:03:00]}  b6 {[%clk 0:02:40]} 8. Ne5 {[%clk 0:03:00]}  Nxe5 {[%clk 0:02:37]} 9. dxe5 {[%clk 0:03:00]}  Nd7 {[%clk 0:02:36]} 10. Bf4 {[%clk 0:02:59]}  Qc7 {[%clk 0:02:21]} 11. Nf3 {[%clk 0:02:45]}  h6 {[%clk 0:02:21]} 12. h4 {[%clk 0:02:44]}  Bb7 {[%clk 0:02:12]} 13. O-O {[%clk 0:02:32]}  O-O-O {[%clk 0:02:09]} 14. Qa4 {[%clk 0:02:11]}  Kb8 {[%clk 0:02:06]} 15. Bg3 {[%clk 0:02:03]}  g5 {[%clk 0:02:02]} 16. h5 {[%clk 0:02:02]}  g4 {[%clk 0:01:58]} 17. Qxg4 {[%clk 0:02:01]}  Rhg8 {[%clk 0:01:56]} 18. Qf4 {[%clk 0:02:01]}  Rdf8 {[%clk 0:01:45]} 19. Rfd1 {[%clk 0:01:55]}  Bg5 {[%clk 0:01:39]} 20. Nxg5 {[%clk 0:01:41]}  Rxg5 {[%clk 0:01:39]} 21. Qh4 {[%clk 0:01:36]}  Rfg8 {[%clk 0:01:28]} 22. Be2 {[%clk 0:01:00]}  Nxe5 {[%clk 0:01:25]} 23. Kf1 {[%clk 0:00:41]}  f6 {[%clk 0:01:19]} 24. Qh3 {[%clk 0:00:35]}  Qf7 {[%clk 0:01:14]} 25. a4 {[%clk 0:00:22]}  Bc6 {[%clk 0:01:05]} 26. a5 {[%clk 0:00:21]}  b5 {[%clk 0:01:03]} 27. b4 {[%clk 0:00:22]}  c4 {[%clk 0:00:58]} 28. Rd4 {[%clk 0:00:22]}  a6 {[%clk 0:00:53]} 29. Ke1 {[%clk 0:00:20]}  Kb7 {[%clk 0:00:50]} 30. Kd2 {[%clk 0:00:18]}  Be8 {[%clk 0:00:48]} 31. Kc2 {[%clk 0:00:17]}  Nc6 {[%clk 0:00:45]} 32. Rd2 {[%clk 0:00:16]}  Qg7 {[%clk 0:00:35]} 33. Rad1 {[%clk 0:00:15]}  Rxg3 {[%clk 0:00:32]} 34. fxg3 {[%clk 0:00:15]}  Qxg3 {[%clk 0:00:33]} 35. Qxg3 {[%clk 0:00:15]}  Rxg3 {[%clk 0:00:32]} 36. Bf3 {[%clk 0:00:16]}  Ne5 {[%clk 0:00:30]} 37. Rf1 {[%clk 0:00:13]}  Rg5 {[%clk 0:00:26]} 38. Rdf2 {[%clk 0:00:12]}  f5 {[%clk 0:00:22]} 39. Rh1 {[%clk 0:00:12]}  Nxf3 {[%clk 0:00:21]} 40. gxf3 {[%clk 0:00:12]}  Bxh5 {[%clk 0:00:21]} 41. f4 {[%clk 0:00:11]}  Rg3 {[%clk 0:00:12]} 42. Rxh5 {[%clk 0:00:11]}  Rxe3 {[%clk 0:00:13]} 43. Rxh6 {[%clk 0:00:12]}  Kc6 {[%clk 0:00:13]} 44. Rh1 {[%clk 0:00:11]}  Kd6 {[%clk 0:00:13]} 45. Rh7 {[%clk 0:00:11]}  Re4 {[%clk 0:00:13]} 46. Ra7 {[%clk 0:00:11]}  Re3 {[%clk 0:00:12]} 47. Rxa6+ {[%clk 0:00:12]}  Ke7 {[%clk 0:00:11]} 48. Rb6 {[%clk 0:00:12]} 1-0


[Site "https://www.chess.com"]

[Event "Titled Tuesday Blitz August 15 Early 2023"]
[White "ArtemDyachuk"]
[Black "Novikova, Margarita"]
[BlackFideId "14109689"]
[WhiteElo "2537"]
[BlackElo "2124"]
[Result "1-0"]
[Round "1"]
[TimeControl "180+1"]
[Date "2023.08.15"]
[WhiteClock "0:00:59"]
[BlackClock "0:00:50"]
[Board "210"]

1. e4 {[%clk 0:02:59]}  d5 {[%clk 0:02:59]} 2. exd5 {[%clk 0:02:58]}  Qxd5 {[%clk 0:02:58]} 3. Nc3 {[%clk 0:02:58]}  Qd6 {[%clk 0:02:57]} 4. d4 {[%clk 0:02:57]}  Nf6 {[%clk 0:02:56]} 5. g3 {[%clk 0:02:48]}  c6 {[%clk 0:02:54]} 6. Bg2 {[%clk 0:02:48]}  Bg4 {[%clk 0:02:52]} 7. Nge2 {[%clk 0:02:46]}  e6 {[%clk 0:02:41]} 8. O-O {[%clk 0:02:45]}  Qc7 {[%clk 0:02:40]} 9. h3 {[%clk 0:02:41]}  Bh5 {[%clk 0:02:36]} 10. Bf4 {[%clk 0:02:27]}  Bd6 {[%clk 0:02:35]} 11. Qd2 {[%clk 0:02:27]}  Nd5 {[%clk 0:02:26]} 12. Bxd5 {[%clk 0:02:10]}  exd5 {[%clk 0:02:16]} 13. Bxd6 {[%clk 0:02:06]}  Qxd6 {[%clk 0:02:16]} 14. Nf4 {[%clk 0:02:05]}  Qh6 {[%clk 0:02:06]} 15. Rfe1+ {[%clk 0:02:03]}  Kd8 {[%clk 0:01:57]} 16. Ncxd5 {[%clk 0:01:44]}  cxd5 {[%clk 0:01:52]} 17. Qa5+ {[%clk 0:01:43]}  Kc8 {[%clk 0:01:43]} 18. Nxd5 {[%clk 0:01:30]}  Qd6 {[%clk 0:01:39]} 19. Ne7+ {[%clk 0:01:28]}  Kd7 {[%clk 0:01:36]} 20. Qxh5 {[%clk 0:01:26]}  Nc6 {[%clk 0:01:28]} 21. Qg4+ {[%clk 0:01:22]}  Kc7 {[%clk 0:01:25]} 22. Nf5 {[%clk 0:01:20]}  Qg6 {[%clk 0:01:21]} 23. Qf4+ {[%clk 0:01:19]}  Kb6 {[%clk 0:01:21]} 24. d5 {[%clk 0:01:19]}  Na5 {[%clk 0:01:06]} 25. b4 {[%clk 0:01:01]}  Nc4 {[%clk 0:01:00]} 26. Qxc4 {[%clk 0:01:01]}  Rac8 {[%clk 0:00:53]} 27. Qd4+ {[%clk 0:01:00]}  Kc7 {[%clk 0:00:50]} 28. Ne7 {[%clk 0:00:59]} 1-0


[Site "https://www.chess.com"]

[Event "Titled Tuesday Blitz August 15 Early 2023"]
[White "Hartikainen, Jarmo"]
[Black "Taboas Rodriguez, Daniel"]
[WhiteFideId "503134"]
[BlackFideId "2208466"]
[WhiteElo "2106"]
[BlackElo "2536"]
[Result "1/2-1/2"]
[Round "1"]
[TimeControl "180+1"]
[Date "2023.08.15"]
[WhiteClock "0:00:16"]
[BlackClock "0:00:14"]
[Board "213"]

1. e4 {[%clk 0:03:00]}  e5 {[%clk 0:03:00]} 2. Nf3 {[%clk 0:03:00]}  Nc6 {[%clk 0:03:00]} 3. Bc4 {[%clk 0:02:59]}  Bc5 {[%clk 0:03:00]} 4. c3 {[%clk 0:02:59]}  Nf6 {[%clk 0:02:59]} 5. d4 {[%clk 0:02:59]}  exd4 {[%clk 0:02:59]} 6. b4 {[%clk 0:02:58]}  Bb6 {[%clk 0:02:56]} 7. e5 {[%clk 0:02:58]}  d5 {[%clk 0:02:56]} 8. exf6 {[%clk 0:02:58]}  dxc4 {[%clk 0:02:55]} 9. Qe2+ {[%clk 0:02:58]}  Be6 {[%clk 0:02:54]} 10. b5 {[%clk 0:02:57]}  d3 {[%clk 0:02:42]} 11. Qe4 {[%clk 0:02:56]}  Na5 {[%clk 0:02:38]} 12. fxg7 {[%clk 0:02:55]}  Rg8 {[%clk 0:02:38]} 13. Bg5 {[%clk 0:02:53]}  Qd5 {[%clk 0:02:29]} 14. Qxh7 {[%clk 0:02:51]}  Kd7 {[%clk 0:02:29]} 15. O-O {[%clk 0:02:28]}  Qf5 {[%clk 0:02:25]} 16. Qh6 {[%clk 0:01:47]}  Rae8 {[%clk 0:02:15]} 17. Nbd2 {[%clk 0:01:35]}  Bd5 {[%clk 0:01:50]} 18. Rae1 {[%clk 0:00:53]}  Qg6 {[%clk 0:01:19]} 19. Qxg6 {[%clk 0:00:46]}  fxg6 {[%clk 0:01:19]} 20. Bh6 {[%clk 0:00:42]}  c6 {[%clk 0:01:10]} 21. Ne5+ {[%clk 0:00:41]}  Kd6 {[%clk 0:00:55]} 22. Nxg6 {[%clk 0:00:41]}  cxb5 {[%clk 0:00:53]} 23. h4 {[%clk 0:00:32]}  Nc6 {[%clk 0:00:53]} 24. h5 {[%clk 0:00:30]}  b4 {[%clk 0:00:49]} 25. Bf4+ {[%clk 0:00:30]}  Kd7 {[%clk 0:00:47]} 26. h6 {[%clk 0:00:29]}  bxc3 {[%clk 0:00:45]} 27. Rxe8 {[%clk 0:00:27]}  Rxe8 {[%clk 0:00:44]} 28. h7 {[%clk 0:00:27]}  cxd2 {[%clk 0:00:44]} 29. h8=Q {[%clk 0:00:26]}  c3 {[%clk 0:00:36]} 30. Nf8+ {[%clk 0:00:23]}  Kd8 {[%clk 0:00:30]} 31. g8=Q {[%clk 0:00:21]}  Bxg8 {[%clk 0:00:30]} 32. Qxg8 {[%clk 0:00:21]}  Re1 {[%clk 0:00:26]} 33. Qd5+ {[%clk 0:00:18]}  Ke8 {[%clk 0:00:26]} 34. Bxd2 {[%clk 0:00:15]}  cxd2 {[%clk 0:00:25]} 35. Qxd3 {[%clk 0:00:15]}  Ba5 {[%clk 0:00:24]} 36. Qe3+ {[%clk 0:00:13]}  Rxe3 {[%clk 0:00:23]} 37. fxe3 {[%clk 0:00:13]}  Ne5 {[%clk 0:00:22]} 38. Kf2 {[%clk 0:00:13]}  Nc4 {[%clk 0:00:21]} 39. Ke2 {[%clk 0:00:13]}  Nb2 {[%clk 0:00:20]} 40. Ng6 {[%clk 0:00:13]}  b5 {[%clk 0:00:17]} 41. g4 {[%clk 0:00:13]}  Bc3 {[%clk 0:00:15]} 42. g5 {[%clk 0:00:13]}  a5 {[%clk 0:00:15]} 43. Nf4 {[%clk 0:00:13]}  b4 {[%clk 0:00:15]} 44. Nd5 {[%clk 0:00:13]}  Be5 {[%clk 0:00:11]} 45. g6 {[%clk 0:00:13]}  d1=Q+ {[%clk 0:00:11]} 46. Rxd1 {[%clk 0:00:12]}  Nxd1 {[%clk 0:00:12]} 47. Kxd1 {[%clk 0:00:12]}  Kf8 {[%clk 0:00:12]} 48. Kc2 {[%clk 0:00:12]}  Kg7 {[%clk 0:00:12]} 49. Kb3 {[%clk 0:00:12]}  Kxg6 {[%clk 0:00:11]} 50. Ka4 {[%clk 0:00:13]}  Kf5 {[%clk 0:00:11]} 51. Kxa5 {[%clk 0:00:13]}  Ke4 {[%clk 0:00:12]} 52. Kxb4 {[%clk 0:00:13]}  Kxd5 {[%clk 0:00:11]} 53. a4 {[%clk 0:00:13]}  Kc6 {[%clk 0:00:12]} 54. a5 {[%clk 0:00:14]}  Kb7 {[%clk 0:00:12]} 55. Kc4 {[%clk 0:00:14]}  Ka6 {[%clk 0:00:12]} 56. Kd5 {[%clk 0:00:15]}  Bc3 {[%clk 0:00:13]} 57. e4 {[%clk 0:00:16]}  Kxa5 {[%clk 0:00:13]} 58. e5 {[%clk 0:00:16]}  Bxe5 {[%clk 0:00:14]} 1/2-1/2


[Site "https://www.chess.com"]

[Event "Titled Tuesday Blitz August 15 Early 2023"]
[White "Degenbaev, Aziz"]
[Black "Sava, Christiansen-Danut-Eugen"]
[WhiteFideId "13802640"]
[BlackFideId "1210114"]
[WhiteElo "2532"]
[BlackElo "2096"]
[Result "0-1"]
[Round "1"]
[TimeControl "180+1"]
[Date "2023.08.15"]
[WhiteClock "0:00:00"]
[BlackClock "0:01:19"]
[Board "216"]

1. e4 {[%clk 0:03:00]}  e6 {[%clk 0:02:59]} 2. d4 {[%clk 0:03:00]}  d5 {[%clk 0:03:00]} 3. Nc3 {[%clk 0:03:00]}  Bb4 {[%clk 0:02:59]} 4. Qd3 {[%clk 0:02:58]}  Nf6 {[%clk 0:02:55]} 5. e5 {[%clk 0:02:54]}  Ne4 {[%clk 0:02:55]} 6. Ne2 {[%clk 0:02:47]}  O-O {[%clk 0:02:53]} 7. a3 {[%clk 0:02:46]}  Bxc3+ {[%clk 0:02:49]} 8. Nxc3 {[%clk 0:02:46]}  Nxc3 {[%clk 0:02:50]} 9. bxc3 {[%clk 0:02:46]}  c5 {[%clk 0:02:50]} 10. Be2 {[%clk 0:02:45]}  c4 {[%clk 0:02:50]} 11. Qg3 {[%clk 0:02:44]}  f5 {[%clk 0:02:45]} 12. exf6 {[%clk 0:02:42]}  Qxf6 {[%clk 0:02:44]} 13. O-O {[%clk 0:02:40]}  Nc6 {[%clk 0:02:44]} 14. Rb1 {[%clk 0:02:35]}  a6 {[%clk 0:02:42]} 15. a4 {[%clk 0:02:35]}  Ne7 {[%clk 0:02:36]} 16. Bg5 {[%clk 0:02:28]}  Nf5 {[%clk 0:02:21]} 17. Bxf6 {[%clk 0:02:00]}  Nxg3 {[%clk 0:02:19]} 18. hxg3 {[%clk 0:02:01]}  gxf6 {[%clk 0:02:18]} 19. Rb6 {[%clk 0:02:01]}  Kf7 {[%clk 0:02:15]} 20. Re1 {[%clk 0:01:58]}  Ke7 {[%clk 0:02:13]} 21. f4 {[%clk 0:01:53]}  f5 {[%clk 0:02:11]} 22. Bf3 {[%clk 0:01:49]}  Kd8 {[%clk 0:02:10]} 23. Kf2 {[%clk 0:01:45]}  a5 {[%clk 0:02:07]} 24. Rh1 {[%clk 0:01:42]}  Rf7 {[%clk 0:02:04]} 25. Rh6 {[%clk 0:01:35]}  Kc7 {[%clk 0:02:02]} 26. Rb1 {[%clk 0:01:36]}  Bd7 {[%clk 0:02:01]} 27. Rbh1 {[%clk 0:01:22]}  Kd6 {[%clk 0:01:45]} 28. Rxh7 {[%clk 0:01:11]}  Rxh7 {[%clk 0:01:46]} 29. Rxh7 {[%clk 0:01:11]}  Bxa4 {[%clk 0:01:46]} 30. Rxb7 {[%clk 0:01:10]}  Bxc2 {[%clk 0:01:46]} 31. Rb6+ {[%clk 0:01:10]}  Ke7 {[%clk 0:01:46]} 32. Rb2 {[%clk 0:01:01]}  Bb3 {[%clk 0:01:45]} 33. g4 {[%clk 0:01:01]}  fxg4 {[%clk 0:01:43]} 34. Bxg4 {[%clk 0:01:01]}  a4 {[%clk 0:01:44]} 35. Re2 {[%clk 0:00:58]}  Ra6 {[%clk 0:01:43]} 36. Re1 {[%clk 0:00:50]}  a3 {[%clk 0:01:43]} 37. Ke3 {[%clk 0:00:42]}  a2 {[%clk 0:01:41]} 38. Ra1 {[%clk 0:00:43]}  Kf6 {[%clk 0:01:41]} 39. Bh3 {[%clk 0:00:42]}  Bc2 {[%clk 0:01:37]} 40. g4 {[%clk 0:00:39]}  Bb1 {[%clk 0:01:37]} 41. Bf1 {[%clk 0:00:24]}  Rb6 {[%clk 0:01:34]} 42. Be2 {[%clk 0:00:21]}  Rb3 {[%clk 0:01:33]} 43. Kd2 {[%clk 0:00:20]}  Rb2+ {[%clk 0:01:33]} 44. Ke3 {[%clk 0:00:11]}  Rc2 {[%clk 0:01:33]} 45. Bd1 {[%clk 0:00:09]}  Rxc3+ {[%clk 0:01:32]} 46. Kd2 {[%clk 0:00:09]}  Rd3+ {[%clk 0:01:33]} 47. Kc1 {[%clk 0:00:10]}  Rxd4 {[%clk 0:01:32]} 48. g5+ {[%clk 0:00:09]}  Kg7 {[%clk 0:01:31]} 49. Bg4 {[%clk 0:00:07]}  Rxf4 {[%clk 0:01:23]} 50. Bxe6 {[%clk 0:00:07]}  Rd4 {[%clk 0:01:22]} 51. Kb2 {[%clk 0:00:06]}  Rd2+ {[%clk 0:01:21]} 52. Kc3 {[%clk 0:00:06]}  Rd3+ {[%clk 0:01:21]} 53. Kb2 {[%clk 0:00:07]}  Kg6 {[%clk 0:01:21]} 54. Bg8 {[%clk 0:00:03]}  Kxg5 {[%clk 0:01:21]} 55. Bh7 {[%clk 0:00:03]}  c3+ {[%clk 0:01:21]} 56. Kb3 {[%clk 0:00:02]}  c2+ {[%clk 0:01:21]} 57. Bxd3 {[%clk 0:00:00]}  c1=Q {[%clk 0:01:19]} 0-1


[Site "https://www.chess.com"]